[Event "German Bundesliga 2023-24"]
[Site "Germany"]
[Date "2024.02.04"]
[Round "7.2"]
[White "Brkic, Ante"]
[Black "Pavlidis, Antonios"]
[Result "0-1"]
[ECO "C84"]
[WhiteElo "2606"]
[BlackElo "2566"]
[Annotator "ChessBase"]
[PlyCount "124"]
[EventDate "2023.10.20"]
[EventType "team-tourn"]
[EventCountry "GER"]
[SourceTitle "playchess.com"]
[Source "ChessBase"]
[SourceQuality "1"]
[TimeControl "40/6000+30:3000+30"]

1. e4 {[%emt 0:00:02]} e5 {[%emt 0:00:04]} 2. Nf3 {[%emt 0:00:03]} Nc6 {[%emt 0:00:06]} 3. Bb5 {[%emt 0:00:03]} a6 {[%emt 0:00:07]} 4. Ba4 {[%emt 0:00:04]} Nf6 {[%emt 0:00:06]} 5. O-O {[%emt 0:00:12]} Nxe4 {[%emt 0:00:08]} 6. d4 {[%emt 0:00:45]} Be7 {[%emt 0:00:07]} 7. Re1 {[%emt 0:02:18]} b5 {[%emt 0:00:11]} 8. Rxe4 {[%emt 0:00:53]} d5 {[%emt 0:00:05]} 9. Nxe5 {[%emt 0:00:19]} Nxe5 {[%emt 0:00:07]} 10. Rxe5 {[%emt 0:00:02]} bxa4 {[%emt 0:00:07]} 11. Qe2 {[%emt 0:00:43]} Be6 {[%emt 0:00:13]} 12. f4 {[%emt 0:00:44]} Kf8 {[%emt 0:00:15]} 13. Nc3 {[%emt 0:00:09]} Bf6 {[%emt 0:02:09]} 14. Nxa4 {[%emt 0:00:55]} Bxe5 {[%emt 0:00:07]} 15. fxe5 {[%emt 0:00:07]} Qh4 {[%emt 0:00:07]} 16. Be3 {[%emt 0:02:11]} Qg4 {[%emt 0:00:09]} 17. Qd2 {[%emt 0:01:40]} h5 {[%emt 0:00:50]} 18. Nc3 {[%emt 0:04:33]} h4 {[%emt 0:03:04]} 19. h3 {[%emt 0:00:10]} Qg6 {[%emt 0:00:21]} 20. Rf1 {[%emt 0:09:37]} Rh5 {[%emt 0:02:30]} 21. Ne2 {[%emt 0:01:52]} Rf5 {[%emt 0:00:32]} 22. Nf4 {[%emt 0:00:17]} Qh7 {[%emt 0:00:15]} 23. Re1 {[%emt 0:00:35]} Kg8 {[%emt 0:11:15]} 24. Qa5 {[%emt 0:10:20]} c6 {[%emt 0:09:22]} 25. Qa4 {[%emt 0:08:29]} Rc8 {[%emt 0:11:51]} 26. Nxe6 {[%emt 0:16:20]} fxe6 {[%emt 0:00:19]} 27. Qxa6 {[%emt 0:00:01]} Rff8 {[%emt 0:01:03]} 28. Qe2 {[%emt 0:02:06]} Ra8 {[%emt 0:04:55]} 29. a3 {[%emt 0:01:06]} Qg6 {[%emt 0:13:45]} 30. Qg4 {[%emt 0:26:18]} Qxg4 {[%emt 0:01:44]} 31. hxg4 {[%emt 0:01:51]} Kh7 {[%emt 0:00:12]} 32. Kh2 {[%emt 0:04:00]} Rf7 {[%emt 0:01:04]} 33. Kh3 {[%emt 0:14:23]} Raf8 {[%emt 0:00:23]} 34. Kxh4 {[%emt 0:00:04]} Rf1 {[%emt 0:00:06]} 35. Re2 {[%emt 0:00:08]} Kg6 {[%emt 0:06:34]} 36. Kg3 {[%emt 0:02:11]} Rb1 {[%emt 0:01:11]} 37. b3 {[%emt 0:00:45]} Rff1 {[%emt 0:00:05]} 38. a4 {[%emt 0:01:47]} Rb2 {[%emt 0:00:37]} 39. Bf4 {[%emt 0:01:21]} Ra1 {[%emt 0:00:41]} 40. Kf3 {[%emt 0:00:30]} Raa2 {[%emt 0:00:45]} 41. Ke3 {[%emt 0:11:09]} Rxc2 {[%emt 0:00:11]} 42. Rxc2 {[%emt 0:02:02]} Rxc2 {[%emt 0:00:05]} 43. Kd3 {[%emt 0:00:02]} Rxg2 {[%emt 0:32:30]} 44. a5 {[%emt 0:06:37]} Rxg4 {[%emt 0:06:17]} 45. Bd2 {[%emt 0:00:20]} Rg3+ {[%emt 0:01:32]} 46. Kc2 {[%emt 0:02:18]} Rh3 {[%emt 0:01:57]} 47. Kb2 {[%emt 0:02:24]} Kf7 {[%emt 0:07:37]} 48. Ka3 {[%emt 0:05:31]} Ke7 {[%emt 0:02:48]} 49. a6 {[%emt 0:00:37]} Kd7 {[%emt 0:01:08]} 50. Kb4 {[%emt 0:00:10]} Kc7 {[%emt 0:05:30]} 51. a7 {[%emt 0:02:43]} Kb7 {[%emt 0:01:16]} 52. Kc5 {[%emt 0:00:05]} Rxb3 {[%emt 0:01:01]} 53. Kd6 {[%emt 0:00:07]} Rd3 {[%emt 0:01:04]} 54. Bg5 {[%emt 0:00:11]} Rxd4 {[%emt 0:06:51]} 55. Kxe6 {[%emt 0:00:04]} Rg4 {[%emt 0:02:16]} 56. Bd2 {[%emt 0:03:53]} d4 {[%emt 0:05:15]} 57. Kf5 {[%emt 0:04:51]} Rg2 {[%emt 0:02:19]} 58. Bf4 {[%emt 0:00:01]} g5 {[%emt 0:09:33]} 59. Bxg5 {[%emt 0:00:52]} d3 {[%emt 0:00:21]} 60. e6 {[%emt 0:00:21]} d2 {[%emt 0:00:15]} 61. e7 {[%emt 0:00:23]} Re2 {[%emt 0:00:04]} 62. Bxd2 {[%emt 0:00:28]} Rxe7 {[%emt 0:00:04]} 0-1

[Event "German Bundesliga 2023-24"]
[Site "Germany"]
[Date "2024.02.03"]
[Round "7.3"]
[White "Shirov, Alexei"]
[Black "Vogel, Roven"]
[Result "1-0"]
[ECO "C54"]
[WhiteElo "2657"]
[BlackElo "2471"]
[Annotator "ChessBase"]
[PlyCount "73"]
[EventDate "2023.10.20"]
[EventType "team-tourn"]
[EventCountry "GER"]
[SourceTitle "playchess.com"]
[Source "ChessBase"]
[SourceQuality "1"]
[TimeControl "40/6000+30:3000+30"]

1. e4 {[%emt 0:00:13]} e5 {[%emt 0:00:07]} 2. Nf3 {[%emt 0:00:07]} Nc6 {[%emt 0:00:04]} 3. Bc4 {[%emt 0:00:53]} Nf6 {[%emt 0:00:08]} 4. d3 {[%emt 0:00:05]} Bc5 {[%emt 0:00:07]} 5. Bg5 {[%emt 0:00:29]} h6 {[%emt 0:00:21]} 6. Bh4 {[%emt 0:00:07]} d6 {[%emt 0:00:27]} 7. c3 {[%emt 0:02:28]} a6 {[%emt 0:01:17]} 8. b4 {[%emt 0:10:43]} Ba7 {[%emt 0:01:11]} 9. O-O {[%emt 0:16:22]} g5 {[%emt 0:02:14]} 10. Bg3 {[%emt 0:00:05]} Qe7 {[%emt 0:01:39]} 11. Nbd2 {[%emt 0:03:56]} Nd7 {[%emt 0:01:37]} 12. a4 {[%emt 0:15:08]} Nf8 {[%emt 0:00:41]} 13. b5 {[%emt 0:01:05]} Na5 {[%emt 0:00:45]} 14. Bd5 {[%emt 0:00:50]} c6 {[%emt 0:02:08]} 15. Ba2 {[%emt 0:04:07]} h5 {[%emt 0:02:54]} 16. h4 {[%emt 0:02:09]} g4 {[%emt 0:00:08]} 17. Nh2 {[%emt 0:00:26]} Ng6 {[%emt 0:00:12]} 18. Kh1 {[%emt 0:00:45]} Nxh4 {[%emt 0:01:19]} 19. f4 {[%emt 0:01:49]} Nxg2 {[%emt 0:00:11]} 20. fxe5 {[%emt 0:15:39]} h4 {[%emt 0:02:08]} 21. Bf2 {[%emt 0:17:06]} Bxf2 {[%emt 0:24:49]} 22. Rxf2 {[%emt 0:00:09]} Ne3 {[%emt 0:16:53]} 23. Qe2 {[%emt 0:00:06]} Qg5 {[%emt 0:14:26]} 24. exd6 {[%emt 0:05:07]} g3 {[%emt 0:04:25]} 25. Rxf7 {[%emt 0:03:32]} gxh2 {[%emt 0:13:20]} 26. Nf3 {[%emt 0:00:24]} Qc5 {[%emt 0:02:25]} 27. Re7+ {[%emt 0:01:07]} Kd8 {[%emt 0:01:12]} 28. Ne5 {[%emt 0:00:08]} Bh3 {[%emt 0:04:59]} 29. bxc6 {[%emt 0:04:44]} Nxc6 {[%emt 0:02:08]} 30. Nf7+ {[%emt 0:00:06]} Kc8 {[%emt 0:00:08]} 31. Rc7+ {[%emt 0:00:21]} Kb8 {[%emt 0:00:05]} 32. Rb1 {[%emt 0:00:06]} Ra7 {[%emt 0:01:37]} 33. Rxc6 {[%emt 0:00:27]} Qxc6 {[%emt 0:04:54]} 34. Qxe3 {[%emt 0:00:13]} Rg8 {[%emt 0:03:45]} 35. Qxh3 {[%emt 0:01:19]} Qxc3 {[%emt 0:02:15]} 36. d7 {[%emt 0:00:38]} Rg1+ {[%emt 0:00:41]} 37. Kxh2 {[%emt 0:00:27]} 1-0

[Event "German Bundesliga 2023-24"]
[Site "Germany"]
[Date "2024.02.03"]
[Round "7.3"]
[White "Yuffa, Daniil"]
[Black "L'Ami, Erwin"]
[Result "1/2-1/2"]
[ECO "D38"]
[WhiteElo "2601"]
[BlackElo "2627"]
[Annotator "ChessBase"]
[PlyCount "93"]
[EventDate "2023.10.20"]
[EventType "team-tourn"]
[EventCountry "GER"]
[SourceTitle "playchess.com"]
[Source "ChessBase"]
[SourceQuality "1"]
[TimeControl "40/6000+30:3000+30"]

1. d4 {[%emt 0:00:05]} d5 {[%emt 0:00:15]} 2. c4 {[%emt 0:00:08]} e6 {[%emt 0:00:19]} 3. Nf3 {[%emt 0:00:09]} Nf6 {[%emt 0:00:27]} 4. Nc3 {[%emt 0:00:07]} Bb4 {[%emt 0:01:02]} 5. cxd5 {[%emt 0:00:22]} exd5 {[%emt 0:00:09]} 6. Bf4 {[%emt 0:00:18]} Ne4 {[%emt 0:02:30]} 7. Rc1 {[%emt 0:00:12]} Nd7 {[%emt 0:00:48]} 8. e3 {[%emt 0:04:16]} g5 {[%emt 0:10:54]} 9. Be5 {[%emt 0:00:15]} O-O {[%emt 0:10:49]} 10. Qb3 {[%emt 0:12:39]} Bxc3+ {[%emt 0:15:45]} 11. bxc3 {[%emt 0:00:10]} Nb6 {[%emt 0:01:07]} 12. Bd3 {[%emt 0:06:30]} Bf5 {[%emt 0:03:00]} 13. h4 {[%emt 0:14:21]} f6 {[%emt 0:06:43]} 14. Bh2 {[%emt 0:04:33]} g4 {[%emt 0:03:13]} 15. Bxe4 {[%emt 0:16:07]} Bxe4 {[%emt 0:00:20]} 16. Nd2 {[%emt 0:00:12]} Bd3 {[%emt 0:04:33]} 17. f3 {[%emt 0:04:05]} Qd7 {[%emt 0:07:07]} 18. Kf2 {[%emt 0:01:41]} Kh8 {[%emt 0:03:30]} 19. Bf4 {[%emt 0:04:26]} h5 {[%emt 0:02:46]} 20. Qd1 {[%emt 0:03:30]} Rg8 {[%emt 0:03:11]} 21. Nb3 {[%emt 0:03:34]} Bh7 {[%emt 0:03:24]} 22. Nd2 {[%emt 0:09:02]} Na4 {[%emt 0:07:24]} 23. Qb3 {[%emt 0:03:17]} c5 {[%emt 0:01:49]} 24. Nf1 {[%emt 0:01:05]} Rae8 {[%emt 0:06:21]} 25. Ng3 {[%emt 0:02:50]} Re6 {[%emt 0:00:38]} 26. Nxh5 {[%emt 0:01:30]} gxf3 {[%emt 0:02:34]} 27. gxf3 {[%emt 0:03:26]} Rb6 {[%emt 0:00:30]} 28. Nxf6 {[%emt 0:01:07]} Rxb3 {[%emt 0:08:46]} 29. axb3 {[%emt 0:00:17]} Qb5 {[%emt 0:00:13]} 30. Be5 {[%emt 0:01:19]} Nb2 {[%emt 0:01:16]} 31. Nd7+ {[%emt 0:07:32]} Rg7 {[%emt 0:00:07]} 32. Nxc5 {[%emt 0:00:02]} b6 {[%emt 0:02:00]} 33. Rcg1 {[%emt 0:02:15]} bxc5 {[%emt 0:00:19]} 34. Bxg7+ {[%emt 0:00:08]} Kg8 {[%emt 0:00:02]} 35. Bh6+ {[%emt 0:00:28]} Kh8 {[%emt 0:00:43]} 36. Bg7+ {[%emt 0:00:03]} Kg8 {[%emt 0:00:02]} 37. Bh6+ {[%emt 0:00:01]} Kf7 {[%emt 0:03:17]} 38. Rg7+ {[%emt 0:00:06]} Kf6 {[%emt 0:00:03]} 39. Rxh7 {[%emt 0:00:25]} Nd3+ {[%emt 0:00:07]} 40. Kg2 {[%emt 0:00:46]} Qxb3 {[%emt 0:01:39]} 41. Bg5+ {[%emt 0:54:17]} Kg6 {[%emt 0:04:07]} 42. Rh6+ {[%emt 0:00:00]} Kg7 {[%emt 0:00:16]} 43. Rf6 {[%emt 0:00:00]} Qb2+ {[%emt 0:13:17]} 44. Kg3 {[%emt 0:00:00]} Qb8+ {[%emt 0:02:09]} 45. Kg2 {[%emt 0:00:00]} Qb2+ {[%emt 0:00:07]} 46. Kg3 {[%emt 0:00:00]} Qb8+ {[%emt 0:00:07]} 47. Kg2 {[%emt 0:00:00]} 1/2-1/2

[Event "German Bundesliga 2023-24"]
[Site "Germany"]
[Date "2024.02.04"]
[Round "7.3"]
[White "Plat, Vojtech"]
[Black "Predojevic, Borki"]
[Result "1/2-1/2"]
[ECO "B17"]
[WhiteElo "2503"]
[BlackElo "2580"]
[Annotator "ChessBase"]
[PlyCount "40"]
[EventDate "2023.10.20"]
[EventType "team-tourn"]
[EventCountry "GER"]
[SourceTitle "playchess.com"]
[Source "ChessBase"]
[SourceQuality "1"]
[TimeControl "40/6000+30:3000+30"]

1. e4 {[%emt 0:00:04]} c6 {[%emt 0:00:19]} 2. d4 {[%emt 0:00:50]} d5 {[%emt 0:00:08]} 3. Nc3 {[%emt 0:00:08]} dxe4 {[%emt 0:02:20]} 4. Nxe4 {[%emt 0:00:06]} Nd7 {[%emt 0:02:30]} 5. Bc4 {[%emt 0:02:04]} Ngf6 {[%emt 0:01:53]} 6. Ng5 {[%emt 0:01:35]} e6 {[%emt 0:04:02]} 7. Qe2 {[%emt 0:01:48]} Nb6 {[%emt 0:00:40]} 8. Bb3 {[%emt 0:00:07]} h6 {[%emt 0:05:13]} 9. N5f3 {[%emt 0:01:17]} a5 {[%emt 0:02:39]} 10. a3 {[%emt 0:04:53]} a4 {[%emt 0:05:41]} 11. Ba2 {[%emt 0:00:07]} c5 {[%emt 0:00:02]} 12. dxc5 {[%emt 0:07:59]} Bxc5 {[%emt 0:01:10]} 13. Nh3 {[%emt 0:03:27]} Nbd7 {[%emt 0:19:44]} 14. O-O {[%emt 0:06:22]} O-O {[%emt 0:02:24]} 15. Rd1 {[%emt 0:02:36]} b6 {[%emt 0:07:05]} 16. Ne5 {[%emt 0:05:44]} Ba6 {[%emt 0:03:31]} 17. Qe1 {[%emt 0:01:36]} Qe7 {[%emt 0:04:40]} 18. Nc6 {[%emt 0:06:41]} Qe8 {[%emt 0:00:06]} 19. Nb4 {[%emt 0:01:11]} Bb7 {[%emt 0:02:17]} 20. Nf4 {[%emt 0:05:04]} Qe7 {[%emt 0:07:44]} 1/2-1/2

[Event "German Bundesliga 2023-24"]
[Site "Germany"]
[Date "2024.02.03"]
[Round "7.4"]
[White "Andersen, Mads"]
[Black "Teclaf, Pawel"]
[Result "1/2-1/2"]
[ECO "B41"]
[WhiteElo "2606"]
[BlackElo "2571"]
[Annotator "RC"]
[PlyCount "40"]
[EventDate "2023.10.20"]
[EventType "team-tourn"]
[EventCountry "GER"]
[SourceTitle "playchess.com"]
[Source "ChessBase"]
[SourceQuality "1"]
[TimeControl "40/6000+30:3000+30"]

1. e4 {[%emt 0:00:06]} c5 {[%emt 0:00:04]} 2. Nf3 {[%emt 0:00:28]} e6 {[%emt 0:00:07]} 3. d4 {[%emt 0:03:37]} cxd4 {[%emt 0:00:11]} 4. Nxd4 {[%emt 0:00:08]} a6 {[%emt 0:00:04]} 5. c4 {[%emt 0:01:50]} Nf6 {[%emt 0:00:07]} 6. Nc3 {[%emt 0:00:21]} Bb4 {[%emt 0:00:05]} 7. Qd3 {[%emt 0:02:43]} d5 {[%emt 0:00:27]} 8. exd5 {[%emt 0:06:15]} exd5 {[%emt 0:00:20]} 9. Be2 {[%emt 0:00:24]} O-O {[%emt 0:00:08]} 10. O-O {[%emt 0:02:25]} Nc6 {[%emt 0:01:09]} 11. Nxc6 {[%emt 0:14:36]} bxc6 {[%emt 0:00:22]} 12. cxd5 {[%emt 0:00:15]} Nxd5 {[%emt 0:02:19]} 13. Nxd5 {[%emt 0:16:16]} Qxd5 {[%emt 0:03:10]} 14. Be3 {[%emt 0:08:44]} Be6 {[%emt 0:12:33]} 15. Rfd1 {[%emt 0:14:31]} Qxd3 {[%emt 0:07:06]} 16. Bxd3 {[%emt 0:03:59]} Bd5 {[%emt 0:01:22]} 17. Bc2 {[%emt 0:00:43]} a5 {[%emt 0:04:42]} 18. Ba4 {[%emt 0:02:25]} f5 {[%emt 0:10:50]} 19. Rdc1 {[%emt 0:07:45]} f4 {[%emt 0:07:51]} 20. Bc5 {[%emt 0:01:55]} Rf6 {[%emt 0:01:57]} 1/2-1/2

[Event "German Bundesliga 2023-24"]
[Site "Germany"]
[Date "2024.02.04"]
[Round "7.4"]
[White "Markus, Robert"]
[Black "Burg, Twan"]
[Result "0-1"]
[ECO "A08"]
[WhiteElo "2582"]
[BlackElo "2530"]
[Annotator "ChessBase"]
[PlyCount "92"]
[EventDate "2023.10.20"]
[EventType "team-tourn"]
[EventCountry "GER"]
[SourceTitle "playchess.com"]
[Source "ChessBase"]
[SourceQuality "1"]
[TimeControl "40/6000+30:3000+30"]

1. Nf3 {[%emt 0:00:08]} d5 {[%emt 0:00:06]} 2. g3 {[%emt 0:00:07]} c5 {[%emt 0:00:16]} 3. Bg2 {[%emt 0:00:29]} Nc6 {[%emt 0:00:09]} 4. O-O {[%emt 0:01:42]} e5 {[%emt 0:00:48]} 5. d3 {[%emt 0:00:07]} Be7 {[%emt 0:00:15]} 6. Nc3 {[%emt 0:04:05]} d4 {[%emt 0:03:19]} 7. Ne4 {[%emt 0:04:54]} f5 {[%emt 0:00:52]} 8. Ned2 {[%emt 0:00:07]} Nh6 {[%emt 0:10:34]} 9. Nb3 {[%emt 0:02:37]} Nf7 {[%emt 0:00:45]} 10. e3 {[%emt 0:00:08]} O-O {[%emt 0:01:22]} 11. exd4 {[%emt 0:01:04]} cxd4 {[%emt 0:00:37]} 12. c3 {[%emt 0:02:31]} dxc3 {[%emt 0:02:24]} 13. bxc3 {[%emt 0:00:08]} Be6 {[%emt 0:07:38]} 14. Be3 {[%emt 0:18:45]} b6 {[%emt 0:02:18]} 15. Qe2 {[%emt 0:06:02]} Bf6 {[%emt 0:08:06]} 16. Rfd1 {[%emt 0:04:56]} Ne7 {[%emt 0:02:38]} 17. Rac1 {[%emt 0:05:24]} g5 {[%emt 0:18:37]} 18. d4 {[%emt 0:10:15]} e4 {[%emt 0:00:23]} 19. Ne5 {[%emt 0:00:19]} Qc7 {[%emt 0:01:33]} 20. c4 {[%emt 0:02:24]} Nxe5 {[%emt 0:05:07]} 21. dxe5 {[%emt 0:00:58]} Qxe5 {[%emt 0:00:28]} 22. c5 {[%emt 0:05:41]} Bxb3 {[%emt 0:12:22]} 23. axb3 {[%emt 0:00:12]} bxc5 {[%emt 0:04:02]} 24. Rxc5 {[%emt 0:11:08]} Qe6 {[%emt 0:00:39]} 25. Qc2 {[%emt 0:00:35]} Kh8 {[%emt 0:06:39]} 26. Bf1 {[%emt 0:04:01]} f4 {[%emt 0:00:08]} 27. Bc4 {[%emt 0:07:33]} Qg4 {[%emt 0:00:28]} 28. Be2 {[%emt 0:00:06]} Qe6 {[%emt 0:00:53]} 29. Bc4 {[%emt 0:02:48]} Qg4 {[%emt 0:00:06]} 30. Bd4 {[%emt 0:01:38]} e3 {[%emt 0:03:07]} 31. Bxf6+ {[%emt 0:08:38]} Rxf6 {[%emt 0:00:16]} 32. Rd6 {[%emt 0:00:10]} fxg3 {[%emt 0:06:48]} 33. fxe3 {[%emt 0:01:56]} gxh2+ {[%emt 0:01:35]} 34. Kxh2 {[%emt 0:00:03]} Qh4+ {[%emt 0:01:37]} 35. Kg2 {[%emt 0:00:11]} Qg4+ {[%emt 0:00:06]} 36. Kh2 {[%emt 0:00:03]} Qh4+ {[%emt 0:02:17]} 37. Kg2 {[%emt 0:00:07]} Nf5 {[%emt 0:02:18]} 38. Re6 {[%emt 0:05:13]} Qg3+ {[%emt 0:06:41]} 39. Kh1 {[%emt 0:00:05]} Nxe3 {[%emt 0:00:05]} 40. Qb2 {[%emt 0:01:23]} Qe1+ {[%emt 0:00:45]} 41. Kh2 {[%emt 0:50:05]} Qh4+ {[%emt 0:10:15]} 42. Kg1 {[%emt 0:00:00]} Qg4+ {[%emt 0:00:23]} 43. Kh1 {[%emt 0:00:00]} Qd1+ {[%emt 0:01:51]} 44. Kh2 {[%emt 0:00:00]} Ng4+ {[%emt 0:00:09]} 45. Kg2 {[%emt 0:00:00]} Qf3+ {[%emt 0:00:06]} 46. Kg1 {[%emt 0:00:00]} Rd8 {[%emt 0:00:10]} 0-1

[Event "German Bundesliga 2023-24"]
[Site "Germany"]
[Date "2024.02.03"]
[Round "7.4"]
[White "Neef, Maximilian"]
[Black "Wojtaszek, Radoslaw"]
[Result "0-1"]
[ECO "B13"]
[WhiteElo "2466"]
[BlackElo "2668"]
[Annotator "ChessBase"]
[PlyCount "75"]
[EventDate "2023.10.20"]
[EventType "team-tourn"]
[EventCountry "GER"]
[SourceTitle "playchess.com"]
[Source "ChessBase"]
[SourceQuality "1"]
[TimeControl "40/6000+30:3000+30"]

1. d4 {[%emt 0:00:05]} Nf6 {[%emt 0:00:06]} 2. Nc3 {[%emt 0:00:15]} d5 {[%emt 0:00:27]} 3. Bf4 {[%emt 0:00:06]} c5 {[%emt 0:00:15]} 4. e3 {[%emt 0:00:07]} cxd4 {[%emt 0:00:11]} 5. exd4 {[%emt 0:00:08]} Bg4 {[%emt 0:00:50]} 6. f3 {[%emt 0:01:10]} Bd7 {[%emt 0:00:08]} 7. Nb5 {[%emt 0:00:24]} Bxb5 {[%emt 0:00:50]} 8. Bxb5+ {[%emt 0:00:08]} Nc6 {[%emt 0:00:11]} 9. c3 {[%emt 0:01:37]} e6 {[%emt 0:02:41]} 10. Ne2 {[%emt 0:00:22]} Bd6 {[%emt 0:02:59]} 11. O-O {[%emt 0:05:13]} O-O {[%emt 0:05:17]} 12. Qd2 {[%emt 0:20:52]} a6 {[%emt 0:03:40]} 13. Bd3 {[%emt 0:09:13]} Bxf4 {[%emt 0:07:16]} 14. Nxf4 {[%emt 0:03:26]} Qd6 {[%emt 0:02:43]} 15. Rae1 {[%emt 0:08:29]} b5 {[%emt 0:03:32]} 16. a3 {[%emt 0:15:32]} Rab8 {[%emt 0:04:25]} 17. Rf2 {[%emt 0:05:26]} a5 {[%emt 0:00:30]} 18. b4 {[%emt 0:01:31]} Rfe8 {[%emt 0:17:17]} 19. Rfe2 {[%emt 0:02:41]} h6 {[%emt 0:07:30]} 20. Bb1 {[%emt 0:08:53]} Re7 {[%emt 0:14:15]} 21. Nd3 {[%emt 0:02:35]} Rbe8 {[%emt 0:01:16]} 22. Re3 {[%emt 0:09:46]} Qb8 {[%emt 0:07:05]} 23. Nc5 {[%emt 0:07:49]} e5 {[%emt 0:04:30]} 24. dxe5 {[%emt 0:02:33]} Nxe5 {[%emt 0:00:05]} 25. Qd4 {[%emt 0:00:24]} Nc6 {[%emt 0:05:26]} 26. Qd3 {[%emt 0:00:17]} Rxe3 {[%emt 0:00:24]} 27. Rxe3 {[%emt 0:00:05]} Rd8 {[%emt 0:00:06]} 28. Re1 {[%emt 0:02:07]} Ne5 {[%emt 0:03:21]} 29. Qd4 {[%emt 0:02:58]} Re8 {[%emt 0:00:01]} 30. Nd3 {[%emt 0:00:44]} Nc4 {[%emt 0:00:06]} 31. bxa5 {[%emt 0:00:26]} Nxa5 {[%emt 0:01:44]} 32. Ba2 {[%emt 0:00:33]} Nc4 {[%emt 0:01:30]} 33. h3 {[%emt 0:00:27]} Rxe1+ {[%emt 0:03:24]} 34. Nxe1 {[%emt 0:00:02]} Nxa3 {[%emt 0:00:04]} 35. Bxd5 {[%emt 0:00:53]} Qg3 {[%emt 0:01:12]} 36. Nd3 {[%emt 0:00:40]} Nc2 {[%emt 0:00:03]} 37. Qc5 {[%emt 0:00:29]} Nxd5 {[%emt 0:00:23]} 38. Qxd5 {[%emt 0:00:00]} 0-1

[Event "German Bundesliga 2023-24"]
[Site "Germany"]
[Date "2024.02.03"]
[Round "7.5"]
[White "Kasimdzhanov, Rustam"]
[Black "Maiwald, Jens-Uwe"]
[Result "1-0"]
[ECO "C03"]
[WhiteElo "2679"]
[BlackElo "2445"]
[Annotator "ChessBase"]
[PlyCount "145"]
[EventDate "2023.10.20"]
[EventType "team-tourn"]
[EventCountry "GER"]
[SourceTitle "playchess.com"]
[Source "ChessBase"]
[SourceQuality "1"]
[TimeControl "40/6000+30:3000+30"]

1. e4 {[%emt 0:00:05]} e6 {[%emt 0:00:32]} 2. d4 {[%emt 0:00:24]} d5 {[%emt 0:00:07]} 3. Nd2 {[%emt 0:00:28]} h6 {[%emt 0:00:33]} 4. c3 {[%emt 0:03:48]} c5 {[%emt 0:00:58]} 5. exd5 {[%emt 0:04:08]} exd5 {[%emt 0:02:14]} 6. Ngf3 {[%emt 0:00:37]} Nf6 {[%emt 0:04:14]} 7. Bb5+ {[%emt 0:00:52]} Bd7 {[%emt 0:00:27]} 8. Bxd7+ {[%emt 0:00:17]} Nbxd7 {[%emt 0:00:12]} 9. O-O {[%emt 0:00:09]} Be7 {[%emt 0:01:20]} 10. dxc5 {[%emt 0:05:45]} Nxc5 {[%emt 0:00:57]} 11. Nd4 {[%emt 0:03:36]} O-O {[%emt 0:02:34]} 12. Nf5 {[%emt 0:01:45]} Re8 {[%emt 0:01:12]} 13. Nf3 {[%emt 0:09:06]} Bf8 {[%emt 0:02:23]} 14. Be3 {[%emt 0:00:21]} Qd7 {[%emt 0:06:26]} 15. N3d4 {[%emt 0:01:23]} Re5 {[%emt 0:05:10]} 16. Ng3 {[%emt 0:15:39]} g6 {[%emt 0:11:17]} 17. Nf3 {[%emt 0:06:10]} Re6 {[%emt 0:02:40]} 18. Ne2 {[%emt 0:07:23]} Rae8 {[%emt 0:11:08]} 19. Nf4 {[%emt 0:00:26]} Re4 {[%emt 0:06:36]} 20. Qd2 {[%emt 0:00:43]} Ra4 {[%emt 0:02:37]} 21. Rfd1 {[%emt 0:02:40]} Qc6 {[%emt 0:09:33]} 22. Nxd5 {[%emt 0:05:59]} Nxd5 {[%emt 0:00:14]} 23. Qxd5 {[%emt 0:00:03]} Qxd5 {[%emt 0:00:08]} 24. Rxd5 {[%emt 0:00:04]} Nb3 {[%emt 0:00:07]} 25. Rb1 {[%emt 0:00:09]} Rxa2 {[%emt 0:00:09]} 26. Rb5 {[%emt 0:00:03]} Na5 {[%emt 0:00:52]} 27. Bxa7 {[%emt 0:00:08]} Nc4 {[%emt 0:04:06]} 28. Rxb7 {[%emt 0:03:43]} Re2 {[%emt 0:02:59]} 29. Kf1 {[%emt 0:12:10]} Rc2 {[%emt 0:01:56]} 30. Bd4 {[%emt 0:14:05]} Bg7 {[%emt 0:08:26]} 31. Rb4 {[%emt 0:08:25]} Rcxb2 {[%emt 0:21:52]} 32. R1xb2 {[%emt 0:00:37]} Nxb2 {[%emt 0:00:03]} 33. Ke2 {[%emt 0:01:02]} Na4+ {[%emt 0:01:12]} 34. Kd3 {[%emt 0:00:07]} Nxc3 {[%emt 0:00:16]} 35. Kxc3 {[%emt 0:01:05]} Rxf2 {[%emt 0:00:36]} 36. Rb2 {[%emt 0:00:26]} Bxd4+ {[%emt 0:00:12]} 37. Nxd4 {[%emt 0:00:05]} Rf1 {[%emt 0:00:11]} 38. Nf3 {[%emt 0:01:29]} Kg7 {[%emt 0:00:21]} 39. Kd4 {[%emt 0:00:42]} Rd1+ {[%emt 0:01:08]} 40. Ke3 {[%emt 0:01:17]} Rd7 {[%emt 0:00:06]} 41. Rc2 {[%emt 0:12:57]} Ra7 {[%emt 0:00:00]} 42. Ke4 {[%emt 0:01:21]} Ra4+ {[%emt 0:00:06]} 43. Nd4 {[%emt 0:02:38]} Ra1 {[%emt 0:01:21]} 44. Rd2 {[%emt 0:04:10]} Ra5 {[%emt 0:01:41]} 45. Nc6 {[%emt 0:00:35]} Rf5 {[%emt 0:03:14]} 46. Ne5 {[%emt 0:01:45]} Rf1 {[%emt 0:00:08]} 47. Kd5 {[%emt 0:00:53]} Rf5 {[%emt 0:01:53]} 48. Kd6 {[%emt 0:00:14]} Rf6+ {[%emt 0:00:17]} 49. Kd7 {[%emt 0:00:25]} Re6 {[%emt 0:04:58]} 50. Nc6 {[%emt 0:01:11]} Rf6 {[%emt 0:00:29]} 51. Re2 {[%emt 0:00:27]} Kf8 {[%emt 0:00:29]} 52. Ne7 {[%emt 0:06:46]} Ra6 {[%emt 0:06:14]} 53. Nc8 {[%emt 0:02:55]} Ra1 {[%emt 0:00:28]} 54. Rf2 {[%emt 0:03:12]} Ra6 {[%emt 0:05:09]} 55. Rc2 {[%emt 0:01:44]} Ra1 {[%emt 0:02:09]} 56. h3 {[%emt 0:02:47]} Re1 {[%emt 0:01:00]} 57. Rb2 {[%emt 0:02:01]} Re3 {[%emt 0:03:33]} 58. Nd6 {[%emt 0:00:33]} Re1 {[%emt 0:02:27]} 59. Rf2 {[%emt 0:07:26]} Re7+ {[%emt 0:00:09]} 60. Kd8 {[%emt 0:00:03]} Ra7 {[%emt 0:00:19]} 61. Re2 {[%emt 0:01:07]} Ra8+ {[%emt 0:02:14]} 62. Kc7 {[%emt 0:00:31]} Ra1 {[%emt 0:02:02]} 63. Rf2 {[%emt 0:00:46]} Ra7+ {[%emt 0:00:11]} 64. Kb6 {[%emt 0:00:09]} Re7 {[%emt 0:00:32]} 65. Kc6 {[%emt 0:00:21]} Ra7 {[%emt 0:01:38]} 66. g4 {[%emt 0:03:40]} Re7 {[%emt 0:00:34]} 67. h4 {[%emt 0:00:55]} Ra7 {[%emt 0:05:29]} 68. g5 {[%emt 0:01:11]} hxg5 {[%emt 0:01:31]} 69. hxg5 {[%emt 0:00:07]} Ra6+ {[%emt 0:01:09]} 70. Kc7 {[%emt 0:00:09]} Ra7+ {[%emt 0:00:19]} 71. Kb6 {[%emt 0:00:23]} Re7 {[%emt 0:01:47]} 72. Kc6 {[%emt 0:00:07]} Kg8 {[%emt 0:00:49]} 73. Nxf7 {[%emt 0:00:15]} 1-0